[Event "4th CNE NED-ch Women Rapid"]
[Site "Amstelveen"]
[Date "2018.11.18"]
[Round "2"]
[White "Van Foreest, Machteld"]
[Black "Keetman, Maaike"]
[Result "0-1"]
[ECO "C03"]
[WhiteElo "2003"]
[BlackElo "2176"]
[Annotator "NA"]
[PlyCount "97"]
[EventDate "2018.11.18"]
[EventType "tourn"]
[EventCountry "NED"]
[SourceTitle "playchess.com"]
[Source "ChessBase"]
[SourceQuality "1"]
[TimeControl "900+10"]

1. e4 {[%emt 0:00:00]} e6 {[%emt 0:00:00]} 2. d4 {[%emt 0:00:00]} d5 {[%emt 0:00:00]} 3. Nd2 {[%emt 0:00:00]} Be7 {[%emt 0:00:00]} 4. c3 {[%emt 0:00:04]} c5 {[%emt 0:00:00]} 5. e5 {[%emt 0:00:12]} cxd4 {[%emt 0:00:10]} 6. cxd4 {[%emt 0:00:03]} Qb6 {[%emt 0:00:02]} 7. Ngf3 {[%emt 0:00:21]} Bd7 {[%emt 0:00:03]} 8. b3 {[%emt 0:01:41]} Bb5 {[%emt 0:00:24]} 9. Bxb5+ {[%emt 0:00:22]} Qxb5 {[%emt 0:00:02]} 10. Qe2 {[%emt 0:00:20]} Qxe2+ {[%emt 0:00:14]} 11. Kxe2 {[%emt 0:00:02]} Nc6 {[%emt 0:00:03]} 12. Bb2 {[%emt 0:00:05]} Nh6 {[%emt 0:00:18]} 13. Nf1 {[%emt 0:00:25]} Kd7 {[%emt 0:00:33]} 14. Ne3 {[%emt 0:00:07]} Rhc8 {[%emt 0:00:52]} 15. Rhc1 {[%emt 0:00:12]} f6 {[%emt 0:01:23]} 16. Kd3 {[%emt 0:01:22]} Nf7 {[%emt 0:01:17]} 17. Ng4 {[%emt 0:01:50]} h5 {[%emt 0:01:48]} 18. Ne3 {[%emt 0:00:02]} Bd8 {[%emt 0:00:21]} 19. g4 {[%emt 0:01:38]} Bc7 {[%emt 0:01:54]} 20. exf6 {[%emt 0:01:15]} gxf6 {[%emt 0:00:02]} 21. gxh5 {[%emt 0:00:00]} Rh8 {[%emt 0:00:43]} 22. Ng4 {[%emt 0:01:49]} f5 {[%emt 0:00:55]} 23. Nge5+ {[%emt 0:00:04]} Nfxe5+ {[%emt 0:00:27]} 24. dxe5 {[%emt 0:00:45]} Rxh5 {[%emt 0:00:25]} 25. Rg1 {[%emt 0:00:32]} Re8 {[%emt 0:00:59]} 26. Rg7+ {[%emt 0:00:24]} Re7 {[%emt 0:00:00]} 27. Rag1 {[%emt 0:00:03]} Rh7 {[%emt 0:00:16]} 28. Rg8 {[%emt 0:00:47]} Re8 {[%emt 0:01:28]} 29. Rxe8 {[%emt 0:01:24]} Kxe8 {[%emt 0:00:01]} 30. Rg8+ {[%emt 0:00:02]} Kd7 {[%emt 0:00:01]} 31. Ke3 {[%emt 0:00:37]} Nb4 {[%emt 0:02:07]} 32. a3 {[%emt 0:01:42]} Nc6 {[%emt 0:00:01]} 33. Kf4 {[%emt 0:00:29]} Bb6 {[%emt 0:00:30]} 34. Kg3 {[%emt 0:00:21]} d4 {[%emt 0:00:51]} 35. Kg2 {[%emt 0:01:07]} d3 {[%emt 0:00:44]} 36. Kf1 {[%emt 0:00:15]} Rh3 {[%emt 0:00:24]} 37. Rg3 {[%emt 0:00:03]} Rxg3 {[%emt 0:00:31]} 38. fxg3 {[%emt 0:00:38]} Na5 {[%emt 0:00:01]} 39. Nd2 {[%emt 0:00:03]} Be3 {[%emt 0:00:15]} 40. Ke1 {[%emt 0:00:01]} Kc6 {[%emt 0:00:32]} 41. Bc3 {[%emt 0:00:12]} b6 {[%emt 0:00:12]} 42. Bxa5 {[%emt 0:00:09]} bxa5 {[%emt 0:00:01]} 43. Nc4 {[%emt 0:00:01]} Bh6 {[%emt 0:00:13]} 44. Nxa5+ {[%emt 0:00:20]} Kd5 {[%emt 0:00:00]} 45. Nc4 {[%emt 0:00:15]} Kd4 {[%emt 0:00:23]} 46. Kd1 {[%emt 0:00:23]} Kc3 {[%emt 0:00:07]} 47. a4 {[%emt 0:00:23]} Kxb3 {[%emt 0:00:05]} 48. Nd2+ {[%emt 0:00:10]} Kxa4 {[%emt 0:00:08]} 49. Nf3 {[%emt 0:00:10]} 0-1

[Event "4th CNE NED-ch Women Rapid"]
[Site "Amstelveen"]
[Date "2018.11.18"]
[Round "3"]
[White "Haast, Anne"]
[Black "Van Foreest, Machteld"]
[Result "1-0"]
[ECO "B48"]
[WhiteElo "2309"]
[BlackElo "2003"]
[Annotator "NA"]
[PlyCount "95"]
[EventDate "2018.11.18"]
[EventType "tourn"]
[EventCountry "NED"]
[SourceTitle "playchess.com"]
[Source "ChessBase"]
[SourceQuality "1"]
[TimeControl "900+10"]

1. e4 {[%emt 0:00:00]} c5 {[%emt 0:00:00]} 2. Nf3 {[%emt 0:00:00]} e6 {[%emt 0:00:00]} 3. d4 {[%emt 0:00:00]} cxd4 {[%emt 0:00:01]} 4. Nxd4 {[%emt 0:00:02]} Nc6 {[%emt 0:00:00]} 5. Nc3 {[%emt 0:01:06]} Qc7 {[%emt 0:00:02]} 6. Be3 {[%emt 0:00:21]} Nf6 {[%emt 0:00:04]} 7. Be2 {[%emt 0:00:36]} a6 {[%emt 0:00:27]} 8. O-O {[%emt 0:00:14]} b5 {[%emt 0:00:16]} 9. Nxc6 {[%emt 0:02:56]} dxc6 {[%emt 0:00:46]} 10. f3 {[%emt 0:01:05]} Bd6 {[%emt 0:01:15]} 11. g3 {[%emt 0:00:04]} Bxg3 {[%emt 0:06:49]} 12. f4 {[%emt 0:00:06]} b4 {[%emt 0:01:01]} 13. hxg3 {[%emt 0:00:22]} bxc3 {[%emt 0:00:03]} 14. Bf3 {[%emt 0:00:12]} cxb2 {[%emt 0:00:09]} 15. Rb1 {[%emt 0:00:01]} Rb8 {[%emt 0:01:47]} 16. Bc5 {[%emt 0:00:11]} Qa5 {[%emt 0:00:14]} 17. Qd6 {[%emt 0:00:23]} Rb7 {[%emt 0:00:35]} 18. Rxb2 {[%emt 0:01:39]} Qc7 {[%emt 0:00:46]} 19. Rxb7 {[%emt 0:00:58]} Qxb7 {[%emt 0:00:32]} 20. Rd1 {[%emt 0:00:14]} Qd7 {[%emt 0:00:15]} 21. Qe5 {[%emt 0:03:36]} Qb7 {[%emt 0:00:02]} 22. Qc3 {[%emt 0:00:16]} h5 {[%emt 0:02:01]} 23. Kh2 {[%emt 0:00:55]} Qc7 {[%emt 0:00:19]} 24. Bd6 {[%emt 0:00:01]} Qb6 {[%emt 0:00:05]} 25. Rd4 {[%emt 0:00:26]} h4 {[%emt 0:00:52]} 26. g4 {[%emt 0:00:02]} e5 {[%emt 0:00:33]} 27. Bxe5 {[%emt 0:00:20]} Nxg4+ {[%emt 0:00:17]} 28. Bxg4 {[%emt 0:00:01]} Bxg4 {[%emt 0:00:01]} 29. Bxg7 {[%emt 0:00:09]} Rg8 {[%emt 0:00:03]} 30. Bf6 {[%emt 0:00:05]} Bd7 {[%emt 0:00:05]} 31. Qd2 {[%emt 0:01:21]} h3 {[%emt 0:00:12]} 32. Bg5 {[%emt 0:00:09]} Qc7 {[%emt 0:00:27]} 33. e5 {[%emt 0:00:22]} f6 {[%emt 0:00:16]} 34. exf6 {[%emt 0:01:06]} Rxg5 {[%emt 0:00:11]} 35. Qe3+ {[%emt 0:00:04]} Kd8 {[%emt 0:00:04]} 36. Rxd7+ {[%emt 0:00:31]} Qxd7 {[%emt 0:00:11]} 37. Qe7+ {[%emt 0:00:31]} Qxe7 {[%emt 0:00:04]} 38. fxe7+ {[%emt 0:00:01]} Kxe7 {[%emt 0:00:01]} 39. fxg5 {[%emt 0:00:00]} Ke6 {[%emt 0:00:18]} 40. Kxh3 {[%emt 0:00:01]} Kf5 {[%emt 0:00:01]} 41. Kh4 {[%emt 0:00:02]} Kg6 {[%emt 0:00:01]} 42. Kg4 {[%emt 0:00:01]} c5 {[%emt 0:00:06]} 43. c4 {[%emt 0:00:06]} Kg7 {[%emt 0:00:05]} 44. Kf5 {[%emt 0:00:01]} Kf7 {[%emt 0:00:01]} 45. Ke5 {[%emt 0:00:09]} Kg6 {[%emt 0:00:02]} 46. Kd5 {[%emt 0:00:01]} Kxg5 {[%emt 0:00:02]} 47. Kxc5 {[%emt 0:00:01]} Kf5 {[%emt 0:00:02]} 48. Kd6 {[%emt 0:00:06] Ke5+ [%clk 0:01:20]} 1-0

[Event "4th CNE NED-ch Women Rapid"]
[Site "Amstelveen"]
[Date "2018.11.18"]
[Round "3"]
[White "Ratsma, Rosa"]
[Black "Paulet, Iozefina"]
[Result "1-0"]
[ECO "C00"]
[WhiteElo "2269"]
[BlackElo "2281"]
[Annotator "NA"]
[PlyCount "107"]
[EventDate "2018.11.18"]
[EventType "tourn"]
[EventCountry "NED"]
[SourceTitle "playchess.com"]
[Source "ChessBase"]
[SourceQuality "1"]
[TimeControl "900+10"]

1. e4 {[%emt 0:00:00]} e6 {[%emt 0:00:00]} 2. d4 {[%emt 0:00:00]} d5 {[%emt 0:00:00]} 3. Bd3 {[%emt 0:00:01]} c5 {[%emt 0:00:01]} 4. exd5 {[%emt 0:00:04]} Qxd5 {[%emt 0:00:03]} 5. Nc3 {[%emt 0:00:05]} Qd8 {[%emt 0:00:03]} 6. Nf3 {[%emt 0:00:06]} Nf6 {[%emt 0:00:15]} 7. O-O {[%emt 0:00:07]} Nc6 {[%emt 0:00:04]} 8. dxc5 {[%emt 0:01:02]} Bxc5 {[%emt 0:00:03]} 9. Bg5 {[%emt 0:00:08]} Be7 {[%emt 0:00:12]} 10. Qe2 {[%emt 0:00:37]} a6 {[%emt 0:00:03]} 11. Rad1 {[%emt 0:00:14]} Qc7 {[%emt 0:00:02]} 12. Ne4 {[%emt 0:01:20]} Bd7 {[%emt 0:02:01]} 13. c4 {[%emt 0:01:12]} Rc8 {[%emt 0:05:22]} 14. b3 {[%emt 0:01:27]} Ne5 {[%emt 0:01:38]} 15. Bf4 {[%emt 0:02:20]} Nxf3+ {[%emt 0:00:03]} 16. Qxf3 {[%emt 0:00:02]} e5 {[%emt 0:00:16]} 17. Bg3 {[%emt 0:01:23]} Bc6 {[%emt 0:00:18]} 18. Qf5 {[%emt 0:00:28]} Bxe4 {[%emt 0:01:23]} 19. Bxe4 {[%emt 0:00:07]} Nxe4 {[%emt 0:00:01]} 20. Bxe5 {[%emt 0:02:11]} Qc6 {[%emt 0:00:01]} 21. Rfe1 {[%emt 0:00:31]} Nxf2 {[%emt 0:04:12]} 22. Qxf2 {[%emt 0:01:23]} O-O {[%emt 0:01:03]} 23. Bxg7 {[%emt 0:00:14]} Rfd8 {[%emt 0:00:57]} 24. Qg3 {[%emt 0:02:45]} Qg6 {[%emt 0:00:17]} 25. Rxd8+ {[%emt 0:00:13]} Bxd8 {[%emt 0:00:05]} 26. Bb2 {[%emt 0:00:41]} Bb6+ {[%emt 0:00:07]} 27. Kh1 {[%emt 0:00:09]} Qxg3 {[%emt 0:00:01]} 28. hxg3 {[%emt 0:00:01]} Bc5 29. Re5 {[%emt 0:00:17]} f6 {[%emt 0:01:01]} 30. Rd5 {[%emt 0:00:12]} Bf2 {[%emt 0:00:09]} 31. Bxf6 {[%emt 0:00:07]} Re8 {[%emt 0:00:01]} 32. Be5 {[%emt 0:00:06]} Re7 {[%emt 0:00:05]} 33. g4 {[%emt 0:00:12]} Re6 {[%emt 0:00:05]} 34. g3 {[%emt 0:00:04]} Kf7 {[%emt 0:00:04]} 35. Kg2 {[%emt 0:00:03]} Bb6 {[%emt 0:00:03]} 36. Kf3 {[%emt 0:00:09]} Re7 {[%emt 0:00:05]} 37. Kf4 {[%emt 0:00:04]} Bf2 {[%emt 0:00:15]} 38. g5 {[%emt 0:00:14]} Bg1 {[%emt 0:00:07]} 39. Kf5 {[%emt 0:00:22]} Bf2 {[%emt 0:00:13]} 40. Rd2 {[%emt 0:00:21]} Be3 {[%emt 0:00:08]} 41. Rd5 {[%emt 0:00:07]} Bf2 {[%emt 0:00:11]} 42. g4 {[%emt 0:00:02]} Be3 {[%emt 0:00:02]} 43. b4 {[%emt 0:00:11]} Bc1 {[%emt 0:00:11]} 44. a4 {[%emt 0:00:06]} Ba3 {[%emt 0:00:04]} 45. b5 {[%emt 0:00:04]} axb5 {[%emt 0:00:01]} 46. axb5 {[%emt 0:00:06]} Bb4 {[%emt 0:00:47]} 47. c5 {[%emt 0:00:06]} Ba5 {[%emt 0:00:01]} 48. c6 {[%emt 0:00:08]} Ke8 {[%emt 0:00:12]} 49. g6 {[%emt 0:00:20]} hxg6+ {[%emt 0:00:02]} 50. Kxg6 {[%emt 0:00:03]} bxc6 {[%emt 0:00:01]} 51. bxc6 {[%emt 0:00:06]} Bc7 {[%emt 0:00:39]} 52. Bxc7 {[%emt 0:00:23]} Rxc7 {[%emt 0:00:00]} 53. Rd6 {[%emt 0:00:05]} Ke7 {[%emt 0:00:14]} 54. Rd7+ {[%emt 0:00:05]} 1-0

[Event "4th CNE NED-ch Women Rapid"]
[Site "Amstelveen"]
[Date "2018.11.18"]
[Round "3"]
[White "De Jong-Muhren, Bianca"]
[Black "Kazarian, Anna-Maja"]
[Result "1-0"]
[ECO "B14"]
[WhiteElo "2243"]
[BlackElo "2194"]
[Annotator "NA"]
[PlyCount "117"]
[EventDate "2018.11.18"]
[EventType "tourn"]
[EventCountry "NED"]
[SourceTitle "playchess.com"]
[Source "ChessBase"]
[SourceQuality "1"]
[TimeControl "900+10"]

1. e4 {[%emt 0:00:00]} c6 {[%emt 0:00:00]} 2. d4 {[%emt 0:00:00]} d5 {[%emt 0:00:00]} 3. exd5 {[%emt 0:00:02]} cxd5 {[%emt 0:00:00]} 4. c4 {[%emt 0:00:01]} Nf6 {[%emt 0:00:00]} 5. Nc3 {[%emt 0:00:01]} e6 {[%emt 0:00:00]} 6. Nf3 {[%emt 0:00:04]} Bb4 {[%emt 0:00:04]} 7. Qb3 {[%emt 0:01:16]} Nc6 {[%emt 0:00:28]} 8. cxd5 {[%emt 0:00:26]} Nxd5 {[%emt 0:00:08]} 9. Bd3 {[%emt 0:00:47]} Qb6 {[%emt 0:03:08]} 10. Bd2 {[%emt 0:04:21]} Nxd4 {[%emt 0:00:43]} 11. Nxd4 {[%emt 0:00:07]} Qxd4 {[%emt 0:00:29]} 12. Bb5+ {[%emt 0:00:04]} Kf8 {[%emt 0:00:33]} 13. O-O-O {[%emt 0:00:12]} Be7 {[%emt 0:07:34]} 14. Rhe1 {[%emt 0:04:29]} Qb4 {[%emt 0:00:35]} 15. Nxd5 {[%emt 0:00:18]} Qxb3 {[%emt 0:00:04]} 16. axb3 {[%emt 0:00:02]} exd5 {[%emt 0:00:01]} 17. Bb4 {[%emt 0:03:13]} Be6 {[%emt 0:00:01]} 18. Bxe7+ {[%emt 0:00:02]} Kxe7 {[%emt 0:00:01]} 19. Rxd5 {[%emt 0:00:02]} Rac8+ {[%emt 0:00:20]} 20. Kb1 {[%emt 0:00:31]} Rhd8 {[%emt 0:00:25]} 21. Bc4 {[%emt 0:00:31]} Kf6 {[%emt 0:01:11]} 22. Rxd8 {[%emt 0:00:09]} Rxd8 {[%emt 0:00:07]} 23. Bxe6 {[%emt 0:00:26]} Re8 {[%emt 0:00:17]} 24. Rd1 {[%emt 0:00:42]} Rxe6 {[%emt 0:00:03]} 25. Rd2 {[%emt 0:00:40]} a6 {[%emt 0:00:25]} 26. b4 {[%emt 0:00:02]} Rb6 {[%emt 0:00:33]} 27. Rd4 {[%emt 0:00:05]} Ke5 {[%emt 0:00:01]} 28. Rh4 {[%emt 0:00:05]} h6 {[%emt 0:00:05]} 29. Kc2 {[%emt 0:00:17]} g5 {[%emt 0:00:12]} 30. Rh3 {[%emt 0:00:29]} Rf6 {[%emt 0:01:25]} 31. Re3+ {[%emt 0:00:26]} Kd4 {[%emt 0:00:03]} 32. Re2 {[%emt 0:00:06]} Kc4 {[%emt 0:00:25]} 33. Re4+ {[%emt 0:00:01]} Kb5 {[%emt 0:00:01]} 34. f3 {[%emt 0:00:03]} b6 {[%emt 0:00:40]} 35. Kb3 {[%emt 0:00:07]} Rd6 {[%emt 0:00:09]} 36. Re7 {[%emt 0:00:23]} Rd4 {[%emt 0:00:27]} 37. Rxf7 {[%emt 0:00:08]} Rxb4+ {[%emt 0:00:02]} 38. Kc2 {[%emt 0:00:06]} Rc4+ {[%emt 0:00:00]} 39. Kd3 {[%emt 0:00:02]} Rc6 {[%emt 0:00:03]} 40. f4 {[%emt 0:00:32]} Kb4 {[%emt 0:00:02]} 41. fxg5 {[%emt 0:00:03]} hxg5 {[%emt 0:00:01]} 42. Rf5 {[%emt 0:00:12]} Kb3 {[%emt 0:00:35]} 43. Rxg5 {[%emt 0:00:04]} Rd6+ {[%emt 0:00:07]} 44. Ke4 {[%emt 0:00:25]} Kxb2 {[%emt 0:00:02]} 45. h4 {[%emt 0:00:13]} b5 {[%emt 0:00:29]} 46. h5 {[%emt 0:00:07]} Rd1 {[%emt 0:00:21]} 47. g4 {[%emt 0:00:14]} b4 {[%emt 0:00:08]} 48. h6 {[%emt 0:00:06]} Rd8 {[%emt 0:00:13]} 49. h7 {[%emt 0:00:12]} Rh8 {[%emt 0:00:02]} 50. Rh5 {[%emt 0:00:03]} b3 {[%emt 0:00:16]} 51. g5 {[%emt 0:00:03]} Kc3 {[%emt 0:00:05]} 52. g6 {[%emt 0:00:03]} b2 {[%emt 0:00:05]} 53. Rh3+ {[%emt 0:00:24]} Kb4 {[%emt 0:00:11]} 54. Rh1 {[%emt 0:00:03]} a5 {[%emt 0:00:04]} 55. Rb1 {[%emt 0:00:22]} Kc3 {[%emt 0:00:00]} 56. g7 {[%emt 0:00:08]} Rxh7 {[%emt 0:00:44]} 57. g8=Q {[%emt 0:00:02]} Rh4+ {[%emt 0:00:09]} 58. Kf3 {[%emt 0:00:07]} Kc2 {[%emt 0:00:04]} 59. Qg6+ {[%emt 0:00:02]} 1-0

[Event "4th CNE NED-ch Women Rapid"]
[Site "Amstelveen"]
[Date "2018.11.18"]
[Round "3"]
[White "Keetman, Maaike"]
[Black "Lanchava, Tea"]
[Result "1-0"]
[ECO "B12"]
[WhiteElo "2176"]
[BlackElo "2314"]
[Annotator "NA"]
[PlyCount "82"]
[EventDate "2018.11.18"]
[EventType "tourn"]
[EventCountry "NED"]
[SourceTitle "playchess.com"]
[Source "ChessBase"]
[SourceQuality "1"]
[TimeControl "900+10"]

1. e4 {[%emt 0:00:00]} c6 {[%emt 0:00:00]} 2. d4 {[%emt 0:00:00]} g6 {[%emt 0:00:00]} 3. c3 {[%emt 0:00:15]} Bg7 {[%emt 0:00:00]} 4. Bd3 {[%emt 0:00:03]} d6 {[%emt 0:00:07]} 5. Nf3 {[%emt 0:00:08]} Nd7 {[%emt 0:00:09]} 6. O-O {[%emt 0:00:05]} Nh6 {[%emt 0:00:07]} 7. Re1 {[%emt 0:00:13]} e5 {[%emt 0:00:10]} 8. h3 {[%emt 0:00:18]} f6 {[%emt 0:00:19]} 9. Qb3 {[%emt 0:00:58]} Qe7 {[%emt 0:00:17]} 10. Be3 {[%emt 0:00:41]} Nf7 {[%emt 0:00:10]} 11. Nbd2 {[%emt 0:00:31]} O-O {[%emt 0:00:04]} 12. a4 {[%emt 0:00:46]} b6 {[%emt 0:00:29]} 13. a5 {[%emt 0:00:44]} b5 {[%emt 0:01:03]} 14. d5 {[%emt 0:00:27]} Nc5 {[%emt 0:00:23]} 15. Bxc5 {[%emt 0:04:03]} dxc5 {[%emt 0:00:02]} 16. dxc6 {[%emt 0:01:33]} c4 {[%emt 0:00:36]} 17. Nxc4 $1 {[%emt 0:00:02]} bxc4 $11 {[%emt 0:00:02]} 18. Bxc4 {[%emt 0:00:09]} Kh8 {[%emt 0:00:27]} 19. Qa3 {[%emt 0:02:48]} Qc7 {[%emt 0:00:41]} 20. Bd5 {[%emt 0:00:10]} Nd8 {[%emt 0:00:34]} 21. b4 {[%emt 0:00:35]} a6 {[%emt 0:00:20]} 22. Qa4 {[%emt 0:00:15]} f5 {[%emt 0:01:36]} 23. c4 {[%emt 0:00:37]} fxe4 {[%emt 0:02:52]} 24. Bxe4 {[%emt 0:00:14]} Ne6 {[%emt 0:00:03]} 25. Red1 {[%emt 0:01:01]} Nd4 {[%emt 0:01:14]} 26. b5 {[%emt 0:01:08]} Ne2+ {[%emt 0:00:11]} 27. Kh1 {[%emt 0:00:05]} Nc3 {[%emt 0:00:02]} 28. Qc2 {[%emt 0:00:09]} Nxd1 {[%emt 0:00:13]} 29. b6 {[%emt 0:00:03]} Nxf2+ {[%emt 0:00:37]} 30. Qxf2 {[%emt 0:00:03]} Qe7 {[%emt 0:01:34]} 31. c7 {[%emt 0:00:02]} Be6 {[%emt 0:02:11]} 32. Bxa8 {[%emt 0:00:37]} e4 {[%emt 0:00:05]} 33. Re1 {[%emt 0:00:17]} exf3 {[%emt 0:00:29]} 34. Bxf3 {[%emt 0:00:01]} Qd7 {[%emt 0:01:47]} 35. Qg3 {[%emt 0:00:15]} Bc3 {[%emt 0:00:34]} 36. Rd1 {[%emt 0:00:25]} Qg7 {[%emt 0:00:22]} 37. Qd6 {[%emt 0:00:44]} Bxh3 {[%emt 0:00:37]} 38. Qxf8+ {[%emt 0:00:08]} Qxf8 {[%emt 0:00:07]} 39. Rd8 {[%emt 0:00:01]} Kg7 {[%emt 0:00:33]} 40. Rxf8 {[%emt 0:00:04]} Kxf8 {[%emt 0:00:03]} 41. gxh3 {[%emt 0:00:02]} Ke7 1-0

[Event "4th CNE NED-ch Women Rapid"]
[Site "Amstelveen"]
[Date "2018.11.18"]
[Round "4"]
[White "Lanchava, Tea"]
[Black "Haast, Anne"]
[Result "0-1"]
[ECO "A22"]
[WhiteElo "2314"]
[BlackElo "2309"]
[Annotator "NA"]
[PlyCount "92"]
[EventDate "2018.11.18"]
[EventType "tourn"]
[EventCountry "NED"]
[SourceTitle "playchess.com"]
[Source "ChessBase"]
[SourceQuality "1"]
[TimeControl "900+10"]

1. c4 {[%emt 0:00:00]} e5 {[%emt 0:00:00]} 2. Nc3 {[%emt 0:00:02]} Nf6 {[%emt 0:00:00]} 3. g3 {[%emt 0:00:04]} d5 {[%emt 0:00:00]} 4. cxd5 Nxd5 5. Bg2 {[%emt 0:00:17]} Nb6 {[%emt 0:00:14]} 6. d3 {[%emt 0:00:09]} Be7 {[%emt 0:00:08]} 7. a3 {[%emt 0:00:02]} O-O {[%emt 0:00:13]} 8. Nf3 {[%emt 0:00:06]} Nc6 {[%emt 0:00:03]} 9. b4 {[%emt 0:00:20]} Be6 {[%emt 0:01:47]} 10. O-O {[%emt 0:00:20]} f6 {[%emt 0:00:02]} 11. Bb2 {[%emt 0:00:22]} a5 {[%emt 0:00:02] A29: English Opening: Four Knights Variation with 4 g3} 12. b5 {[%emt 0:00:32]} Nd4 {[%emt 0:00:02]} 13. Nd2 {[%emt 0:01:39]} Qc8 {[%emt 0:00:02]} 14. e3 {[%emt 0:00:12]} Nf5 {[%emt 0:00:03] [#]} 15. Nde4 $146 {[%emt 0:01:17]} ({Predecessor:} 15. Rc1 a4 16. Qe2 Nd6 17. Nde4 Nf7 18. f4 Qd7 19. Nf2 exf4 20. gxf4 {1-0 (36) Van Wely,L (2657)-Van den Doel,E (2589) Amstelveen 2017}) 15... Rd8 {[%emt 0:00:13]} 16. Qe2 {[%emt 0:00:17]} Nh6 {[%emt 0:00:20]} 17. f4 {[%emt 0:00:32]} exf4 {[%emt 0:00:37]} 18. gxf4 {[%emt 0:02:01]} Qd7 {[%emt 0:00:43]} 19. Nf2 {[%emt 0:00:09]} Nd5 {[%emt 0:00:20]} 20. Nxd5 {[%emt 0:00:41]} Bxd5 {[%emt 0:00:02]} 21. e4 {[%emt 0:00:02]} Bf7 {[%emt 0:01:24]} 22. d4 {[%emt 0:00:09]} a4 {[%emt 0:00:21]} 23. Bh3 {[%emt 0:00:13]} Qe8 {[%emt 0:00:55]} 24. f5 {[%emt 0:01:30]} Ra5 {[%emt 0:00:26]} 25. Rfc1 {[%emt 0:00:27]} Bd6 {[%emt 0:00:29]} 26. Bf1 {[%emt 0:00:20]} Bh5 {[%emt 0:00:44]} 27. Qc4+ {[%emt 0:00:20]} Kh8 {[%emt 0:00:06]} 28. e5 $2 {[%emt 0:01:40]} (28. Qc3 $11 {and White stays safe.} Rxb5 29. Bxb5 Qxb5 30. Rab1) 28... Nxf5 {[%emt 0:00:41]} 29. Qc3 {[%emt 0:02:14] [#]} fxe5 $1 {[%emt 0:00:50]} 30. dxe5 {[%emt 0:00:42]} ({Weaker is} 30. Qxa5 Qg6+ 31. Ng4 (31. Bg2 $2 Bf3 $19) 31... Qxg4+ {[%mdl 64] Double Attack} 32. Bg2 e4) (30. Qh3 $142 Qg6+ 31. Kh1 Nxd4 32. Bd3) 30... Bxe5 {[%emt 0:00:37]} 31. Qxe5 {[%emt 0:01:16]} Qg6+ {[%emt 0:00:22]} 32. Bg2 {[%emt 0:00:10]} Bf3 {[%emt 0:00:37]} 33. Ng4 {[%emt 0:00:11]} Qxg4 {[%emt 0:01:38]} 34. Rc2 {[%emt 0:00:01]} Nh4 {[%emt 0:00:34]} 35. Re1 {[%emt 0:01:09]} Raa8 $2 {[%emt 0:00:22]} (35... Rg8 $19 36. Qg3 Qxg3 37. hxg3 Nxg2) 36. Qg3 $1 {[%emt 0:00:09]} Rd7 {[%emt 0:03:43]} 37. Qxg4 {[%emt 0:00:03]} Bxg4 {[%emt 0:00:01]} 38. Bxb7 {[%emt 0:00:15]} Rf8 {[%emt 0:00:01]} 39. Rc4 {[%emt 0:00:43]} h5 {[%emt 0:00:12]} 40. h3 {[%emt 0:00:22]} Nf3+ {[%emt 0:00:07]} 41. Bxf3 {[%emt 0:00:04]} Bxf3 {[%emt 0:00:01]} 42. Rf1 {[%emt 0:00:01]} Rd2 {[%emt 0:00:20]} 43. Bd4 {[%emt 0:00:44]} Rg2+ {[%emt 0:00:14]} 44. Kh1 {[%emt 0:00:00]} Rf2+ {[%emt 0:00:21]} 45. Kg1 {[%emt 0:00:03]} Rxf1+ {[%emt 0:00:04]} 46. Kxf1 {[%emt 0:00:02]} Bd5+ {[%emt 0:00:02]} 0-1

[Event "4th CNE NED-ch Women Rapid"]
[Site "Amstelveen"]
[Date "2018.11.18"]
[Round "4"]
[White "De Jong-Muhren, Bianca"]
[Black "Keetman, Maaike"]
[Result "1/2-1/2"]
[ECO "C03"]
[WhiteElo "2243"]
[BlackElo "2176"]
[Annotator "NA"]
[PlyCount "95"]
[EventDate "2018.11.18"]
[EventType "tourn"]
[EventCountry "NED"]
[SourceTitle "playchess.com"]
[Source "ChessBase"]
[SourceQuality "1"]
[TimeControl "900+10"]

1. e4 {[%emt 0:00:00]} e6 {[%emt 0:00:00]} 2. d4 {[%emt 0:00:00]} d5 {[%emt 0:00:00]} 3. Nd2 {[%emt 0:00:00]} Be7 {[%emt 0:00:00]} 4. Bd3 {[%emt 0:00:05]} c5 {[%emt 0:00:00]} 5. dxc5 {[%emt 0:00:08]} Nf6 {[%emt 0:00:01]} 6. Qe2 {[%emt 0:00:14]} O-O {[%emt 0:00:05]} 7. Ngf3 {[%emt 0:00:44]} a5 {[%emt 0:00:03]} 8. c3 {[%emt 0:00:17]} Na6 {[%emt 0:00:13]} 9. e5 {[%emt 0:00:31]} Nd7 {[%emt 0:00:03]} 10. Nb3 {[%emt 0:00:02]} Naxc5 {[%emt 0:00:49]} 11. Nxc5 {[%emt 0:00:04]} Nxc5 {[%emt 0:00:03]} 12. Bc2 {[%emt 0:00:01]} b6 {[%emt 0:00:08]} 13. Bf4 {[%emt 0:00:09]} Ba6 {[%emt 0:00:26]} 14. Qe3 {[%emt 0:00:04]} Qc7 {[%emt 0:02:15]} 15. O-O-O {[%emt 0:00:54]} b5 {[%emt 0:00:10]} 16. h4 {[%emt 0:06:30]} b4 {[%emt 0:01:10]} 17. Ng5 {[%emt 0:00:09]} g6 {[%emt 0:01:14]} 18. h5 {[%emt 0:00:34]} Ne4 {[%emt 0:05:33]} 19. Nxe4 {[%emt 0:04:35]} dxe4 {[%emt 0:00:03]} 20. hxg6 {[%emt 0:00:02]} fxg6 {[%emt 0:00:08]} 21. Qh3 {[%emt 0:00:42]} Rf7 {[%emt 0:00:53]} 22. Qxe6 {[%emt 0:01:23]} Bc4 {[%emt 0:00:34]} 23. Rd7 {[%emt 0:00:06]} Bxe6 {[%emt 0:01:19]} 24. Rxc7 {[%emt 0:00:01]} bxc3 {[%emt 0:00:03]} 25. Be3 {[%emt 0:00:24]} Bxa2 {[%emt 0:00:32]} 26. Rxc3 {[%emt 0:00:10]} Bd5 {[%emt 0:00:15]} 27. Rd1 {[%emt 0:00:10]} Rd8 {[%emt 0:00:25]} 28. Rxd5 {[%emt 0:01:11]} Rxd5 {[%emt 0:00:01]} 29. Bb3 {[%emt 0:00:01]} Rxe5 {[%emt 0:00:07]} 30. Rc8+ {[%emt 0:00:34]} Bf8 {[%emt 0:00:36]} 31. Bh6 {[%emt 0:00:09]} Rc5+ {[%emt 0:00:05]} 32. Rxc5 {[%emt 0:00:04]} Bxc5 {[%emt 0:00:01]} 33. f3 {[%emt 0:00:16]} exf3 {[%emt 0:00:20]} 34. gxf3 {[%emt 0:00:01]} Bf8 {[%emt 0:00:11]} 35. Bd2 {[%emt 0:00:11]} a4 {[%emt 0:00:11]} 36. Be6 {[%emt 0:00:05]} Kg7 {[%emt 0:00:41]} 37. Bc3+ {[%emt 0:00:04]} Rf6 {[%emt 0:00:01]} 38. Bd7 {[%emt 0:00:32]} a3 {[%emt 0:00:12]} 39. bxa3 {[%emt 0:00:09]} Bxa3+ {[%emt 0:00:02]} 40. Kc2 {[%emt 0:00:07]} Kf7 {[%emt 0:00:05]} 41. Bxf6 {[%emt 0:00:02]} Kxf6 {[%emt 0:00:01]} 42. Kd3 {[%emt 0:00:01]} Ke5 {[%emt 0:00:05]} 43. Ke2 {[%emt 0:00:08]} Kf4 {[%emt 0:00:09]} 44. Kf2 {[%emt 0:00:03]} h5 {[%emt 0:00:11]} 45. Be8 {[%emt 0:00:13]} h4 {[%emt 0:00:19]} 46. Bxg6 {[%emt 0:00:17]} h3 {[%emt 0:00:01]} 47. Kg1 {[%emt 0:00:01]} Kxf3 {[%emt 0:00:05]} 48. Kh1 {[%emt 0:00:02]} 1/2-1/2